bitfinex/quotes_ETHUSD_20251201
["timestamp","ask_amount","ask_price","bid_price","bid_amount"]
[1764628514972,3.93824347,2797.8,2797.3,0.23072252]
[1764628515380,0.571,2797.8,2797.3,0.23072252]
[1764628515573,0.72559411,2798.1,2797.3,3.80555162]
[1764628515771,0.6707041,2798.1,2797.3,7.38042739]
[1764628516099,4.24456136,2798.1,2797.3,3.80555162]
[1764628516303,0.82947002,2798.0,2797.3,3.80555162]
[1764628516891,3.57410915,2797.9,2797.3,0.23072252]
[1764628517608,3.57410915,2797.9,2797.3,3.80558612]
[1764628518277,3.57410915,2797.9,2797.1,3.57510103]
[1764628518500,0.4764,2797.8,2797.1,3.57510103]
[1764628518708,0.40505092,2797.7,2797.2,7.15000714]
[1764628519111,0.40505092,2797.7,2797.0,7.1505184]
[1764628519279,11.21745517,2798.0,2797.0,7.1505184]
[1764628519586,10.85346542,2798.0,2797.0,7.1505184]
[1764628522014,10.85346542,2798.0,2797.1,0.001]
[1764628524091,7.85047002,2798.0,2797.1,0.572]
[1764628524406,7.85047002,2798.0,2797.1,1.71765776]
[1764628524612,11.42450863,2798.0,2797.1,1.71765776]
[1764628525010,11.42450863,2798.0,2797.1,0.572]
[1764628525818,11.42450863,2798.0,2797.2,7.15000714]
[1764628526812,7.85047002,2798.0,2797.2,7.15000714]
[1764628527116,6.45,2798.0,2797.2,7.15000714]
[1764628527313,0.571,2798.1,2797.2,7.15000714]
[1764628527620,1.29659411,2798.1,2797.2,10.72501071]
[1764628528020,1.29659411,2798.1,2797.2,7.15000714]
[1764628528223,4.14487168,2798.1,2797.2,7.15000714]
[1764628528421,4.93528925,2798.1,2797.2,8.27972613]
[1764628530438,0.002,2798.3,2797.2,15.42973327]
[1764628530639,0.002,2798.3,2797.3,0.72559411]
[1764628530852,0.002,2798.3,2797.4,0.405504]
[1764628531010,0.002,2798.3,2797.6,0.405504]
[1764628531212,0.72559411,2799.5,2797.6,0.405504]
[1764628531407,0.46211594,2799.4,2797.6,0.405504]
[1764628531820,0.573,2799.6,2797.6,0.405504]
[1764628532112,0.573,2799.6,2797.8,1.13109811]
[1764628532336,0.573,2799.6,2798.3,5.31647345]
[1764628532641,0.573,2799.6,2797.7,17.87182325]
[1764628532642,0.002,2799.6,2798.7,5.31647345]
[1764628532850,0.002,2799.6,2799.0,0.405504]
[1764628533013,0.002,2799.6,2799.0,1.13109811]
[1764628533214,0.002,2799.6,2799.1,0.64475716]
[1764628533416,0.002,2799.6,2799.2,0.571]
[1764628533615,0.002,2799.6,2799.3,0.405504]
[1764628534141,0.002,2799.9,2799.3,0.405504]
[1764628534358,0.002,2799.9,2799.5,0.72559411]
[1764628534658,0.002,2799.9,2799.6,1.6197001]
[1764628536243,0.002,2799.9,2799.7,3.57181126]
[1764628537518,0.002,2800.2,2799.8,0.72559411]
[1764628538236,0.002,2800.2,2800.1,0.72559411]
[1764628540446,0.002,2800.2,2800.1,4.29689513]
[1764628540619,0.002,2800.2,2800.1,5.42661412]
[1764628544264,0.4823,2800.2,2799.8,0.001]
[1764628544435,0.6722,2799.9,2799.8,0.001]
[1764628544845,1.1445,2799.9,2799.8,0.001]
[1764628545425,0.6722,2799.9,2799.8,0.001]
[1764628547223,0.1919,2799.9,2799.8,0.72659411]
[1764628549195,0.4743,2800.2,2799.9,3.57155612]
[1764628549697,0.4803,2800.0,2799.8,3.57262644]
[1764628550002,0.4803,2799.9,2799.8,3.57262644]
[1764628550703,0.4743,2800.2,2799.8,3.57262644]
[1764628550898,0.4743,2800.2,2799.8,7.14431013]
[1764628551563,0.4743,2800.2,2799.8,0.001]
[1764628554471,0.002,2800.2,2799.8,0.001]
[1764628555109,0.002,2800.2,2799.8,1.12963802]
[1764628555761,0.002,2800.2,2799.9,3.57155612]
[1764628555962,0.002,2800.2,2799.9,7.14311224]
[1764628556587,0.002,2800.2,2800.0,0.72559411]
[1764628556787,0.002,2800.2,2800.1,0.57]
[1764628556987,0.002,2800.2,2800.1,1.41387064]
[1764628558010,0.002,2800.2,2800.1,5.71076577]
[1764628562914,0.002,2800.2,2800.1,6.11626977]
[1764628577763,0.002,2800.2,2800.1,11.42671496]
[1764628578323,0.002,2800.2,2800.1,6.11626977]
[1764628578525,0.002,2800.2,2800.1,5.54626977]
[1764628578762,0.002,2800.2,2800.1,6.11526977]
[1764628581466,0.002,2800.2,2800.1,6.2583387]
[1764628588259,0.002,2800.2,2800.1,5.6893387]
[1764628588466,0.002,2800.8,2800.2,1.13109811]
[1764628588639,0.002,2800.8,2800.4,1.13109811]
[1764628588963,0.002,2800.8,2800.6,0.405504]
[1764628589846,0.002,2800.8,2800.5,1.050194]
[1764628590435,0.002,2800.8,2800.7,0.72559411]
[1764628591657,0.002,2800.8,2800.7,4.70163404]
[1764628591854,0.002,2800.8,2800.7,5.63388319]
[1764628594347,0.002,2800.8,2800.7,6.20188319]
[1764628597180,0.002,2800.8,2800.7,5.63388319]
[1764628597470,0.002,2800.8,2800.7,6.20188319]
[1764628615013,0.002,2800.8,2800.7,6.69778319]
[1764628619003,0.002,2801.4,2801.0,1.13109811]
[1764628619004,1e-08,2801.4,2801.0,1.13109811]
[1764628619197,1e-08,2801.4,2801.2,0.405504]
[1764628619743,1e-08,2801.4,2801.2,1.62699811]
[1764628620525,1e-08,2801.4,2801.3,6.6051945]
[1764628621218,1e-08,2801.4,2801.3,10.17496567]
[1764628628931,0.002,2802.7,2801.4,1.13109811]
[1764628629173,0.002,2802.7,2802.2,1.13109811]
[1764628629355,0.1974,2802.6,2802.4,0.405504]
[1764628629731,0.4592,2802.5,2802.4,0.405504]
[1764628630533,0.4592,2802.5,2802.4,3.97387396]
[1764628630863,0.4592,2802.5,2802.4,4.85747042]
[1764628631161,0.4592,2802.5,2802.4,5.58306453]
[1764628631335,0.9491,2802.5,2802.4,5.58306453]
[1764628636378,0.9491,2802.5,2802.4,4.69946807]
[1764628637762,0.002,2802.7,2802.5,0.72559411]
[1764628638160,0.4759,2802.6,2802.5,1.13109811]
[1764628638358,0.9658,2802.6,2802.5,1.13109811]
[1764628640109,0.9658,2802.6,2802.5,4.69934075]
[1764628640910,0.9658,2802.6,2802.5,5.66514075]
[1764628647317,0.9658,2802.6,2802.5,7.00214148]
[1764628650435,0.9678,2802.6,2802.5,5.66514075]
[1764628665041,0.002,2802.6,2802.5,6.14084075]
[1764628665946,0.002,2802.9,2802.6,0.881204]
[1764628666249,1e-08,2803.0,2802.9,5.17453152]
[1764628666745,1e-08,2803.0,2802.9,5.64533152]
[1764628666908,1e-08,2803.0,2802.9,7.15362958]
[1764628667108,1e-08,2803.0,2802.9,7.2965518]
[1764628667541,1e-08,2803.3,2803.2,6.90859532]
[1764628667840,1e-08,2803.3,2803.2,12.77839253]
[1764628668038,1e-08,2803.3,2803.2,8.38762473]
[1764628668243,1e-08,2803.3,2803.2,9.04232473]
[1764628669324,1e-08,2803.3,2803.2,9.04232473]
[1764628669524,1e-08,2803.3,2803.2,12.60967632]
[1764628672529,1e-08,2803.3,2803.2,17.91147353]
[1764628672842,1e-08,2803.3,2803.2,12.60967632]
[1764628673614,1e-08,2803.3,2803.2,17.91147353]
[1764628680564,1e-08,2803.3,2803.2,21.77147353]
[1764628680732,1e-08,2803.3,2803.2,7.30787911]
[1764628681062,1e-08,2803.3,2803.2,17.91147353]
[1764628682226,0.1922,2804.0,2803.2,20.06278547]
[1764628682432,0.4625,2803.9,2803.3,1.12464533]
[1764628682631,0.4625,2803.9,2803.2,10.70205477]
[1764628682845,0.4625,2803.9,2803.4,1.07199328]
[1764628683160,0.4625,2803.9,2803.5,7.1339397]
[1764628684375,0.4625,2803.9,2803.5,10.70090955]
[1764628686349,0.4645,2803.9,2803.5,10.70090955]
[1764628687172,0.4645,2803.9,2803.7,7.13343082]
[1764628689583,0.4645,2803.9,2803.7,3.56671541]
[1764628689752,0.4645,2803.9,2803.7,7.13343082]
[1764628690665,0.4645,2803.9,2803.8,4.1335882]
[1764628696375,0.4995,2803.9,2803.8,4.29218231]
[1764628696579,0.4995,2803.9,2803.8,4.5980882]
[1764628698794,0.4995,2803.9,2803.8,4.1335882]
[1764628703511,0.4995,2803.9,2803.8,3.5665882]
[1764628704705,0.4995,2803.9,2803.7,7.13343082]
[1764628705927,0.002,2803.9,2803.7,7.13343082]
[1764628706124,0.4672,2803.8,2803.7,4.80075219]
[1764628706629,0.4672,2803.8,2803.7,5.26795219]
[1764628709341,0.4672,2803.8,2803.7,3.56671541]
[1764628709817,5.76899721,2803.8,2803.7,3.56671541]
[1764628710016,5.76899721,2803.8,2803.5,3.56793104]
[1764628710216,5.30179721,2803.6,2803.5,3.56793104]
[1764628710413,5.83197693,2803.6,2803.5,3.56793104]
[1764628710610,5.77589721,2803.6,2803.5,3.56793104]
[1764628710813,5.77589721,2803.6,2803.5,0.001]
[1764628712337,0.4741,2803.6,2803.5,0.001]
[1764628721642,0.4761,2803.6,2803.5,0.001]
[1764628733306,6.51012905,2803.6,2803.5,0.001]
[1764628733477,6.51012905,2803.6,2803.2,0.001]
[1764628733478,10.82768868,2803.6,2803.2,0.001]
[1764628733674,5.94792905,2803.3,2803.2,0.001]
[1764628737381,6.3119188,2803.3,2803.2,0.001]
[1764628738007,10.1200656,2803.3,2803.1,0.001]
[1764628738213,1.69979156,2803.2,2803.1,0.001]
[1764628738414,2.06378131,2803.2,2803.1,0.001]
[1764628738788,2.06378131,2803.2,2802.6,0.001]
[1764628738789,0.405504,2803.1,2802.6,0.001]
[1764628738980,5.59242905,2802.7,2802.6,0.001]
[1764628739181,7.0826617,2802.7,2802.6,0.001]
[1764628739491,8.0020617,2802.7,2802.6,0.001]
[1764628740712,1.1173429,2802.7,2802.6,0.001]
[1764628740902,1.0448,2802.7,2802.6,0.001]
[1764628741307,0.72559411,2803.0,2802.6,0.001]
[1764628741308,0.1285,2802.9,2802.6,0.4659]
[1764628741612,0.6158,2802.9,2802.7,3.56798801]
[1764628741814,0.4297,2802.7,2802.6,3.56907003]
[1764628742216,0.1285,2802.9,2802.6,7.60208535]
[1764628742921,0.4873,2803.0,2802.6,7.60208535]
[1764628743110,6.03402905,2803.1,2802.6,7.60208535]
[1764628743317,0.66795206,2803.0,2802.7,0.4564]
[1764628743708,0.66795206,2803.0,2802.8,3.56786071]
[1764628744227,0.66795206,2803.0,2802.8,7.13572142]
[1764628744529,0.1984,2803.3,2802.8,7.13572142]
[1764628744530,0.1984,2803.3,2802.9,0.9213]
[1764628744734,0.6857,2803.3,2802.9,0.4649]
[1764628744903,0.4873,2803.2,2802.9,0.4649]
[1764628745831,0.4873,2803.2,2802.9,4.03259622]
[1764628746033,1.10257291,2803.2,2802.9,4.03259622]
[1764628746333,0.3604,2803.0,2802.6,0.001]
[1764628746533,0.486,2803.1,2802.7,3.5679026]
[1764628746736,0.4873,2803.0,2802.7,7.13589061]
[1764628747239,0.567,2803.5,2802.7,7.13589061]
[1764628747407,0.96599858,2803.4,2802.7,7.59229061]
[1764628747838,0.4873,2803.3,2802.7,7.59229061]
[1764628748735,0.4873,2803.3,2802.8,0.4564]
[1764628749139,0.4873,2803.3,2802.8,1.0234]
[1764628750238,0.4873,2803.3,2802.9,3.56773341]
[1764628750411,0.4873,2803.3,2802.9,7.13546682]
[1764628751709,1.1355129,2803.6,2803.0,0.4619]
[1764628752021,1.1355129,2803.6,2803.0,1.0289]
[1764628752422,0.6530129,2803.6,2803.1,7.13495772]
[1764628752642,0.002,2803.6,2803.2,0.4619]
[1764628753639,0.002,2803.6,2803.5,0.4684]
[1764628754416,0.002,2803.6,2803.5,4.03536985]
[1764628755031,0.002,2803.6,2803.5,4.49726985]
[1764628759554,6.03602905,2804.2,2803.8,0.4684]
[1764628759555,0.002,2804.2,2803.8,0.4684]
[1764628759724,0.002,2804.2,2804.1,0.5949]
[1764628759919,0.002,2804.2,2804.1,1.37090272]
[1764628760126,0.002,2804.2,2804.1,1.6238]
[1764628760346,0.002,2804.2,2804.1,1.76669363]
[1764628761355,0.002,2804.2,2804.1,6.05849436]
[1764628762948,0.002,2804.2,2804.1,6.46399836]
[1764628763139,0.002,2804.2,2804.1,7.21712578]
[1764628763335,0.002,2804.2,2804.1,8.84217426]
[1764628764766,1e-08,2804.4,2804.3,0.4684]
[1764628764934,1e-08,2804.4,2804.3,0.873904]
[1764628765258,1e-08,2804.4,2804.3,2.06139811]
[1764628765457,1e-08,2804.4,2804.3,5.62735039]
[1764628765658,1e-08,2804.4,2804.3,7.41485291]
[1764628770378,1e-08,2804.4,2804.3,7.5577103]
[1764628773978,1e-08,2804.4,2804.3,8.1247103]
[1764628774392,1e-08,2804.4,2804.3,13.4189257]
[1764628776792,1e-08,2804.4,2804.3,7.0958103]
[1764628777091,1e-08,2804.4,2804.3,7.2573063]
[1764628777290,1e-08,2804.4,2804.3,8.1178103]
[1764628784407,1e-08,2804.4,2804.3,7.6628103]
[1764628784787,0.31180001,2804.4,2804.3,7.6628103]
[1764628785298,1e-08,2804.4,2804.3,7.6628103]
[1764628786618,1e-08,2804.4,2804.3,8.1206103]
[1764628788091,1e-08,2804.4,2804.3,7.6628103]
[1764628788514,1e-08,2804.4,2804.3,7.6638103]
[1764628788920,1e-08,2804.4,2804.3,8.1216103]
[1764628790821,1e-08,2804.4,2804.3,8.1033203]
[1764628794912,1e-08,2804.4,2804.3,7.5363203]
[1764628795111,1e-08,2804.4,2804.3,8.1033203]
[1764628798736,1e-08,2804.4,2804.3,7.6455203]
[1764628798936,1e-08,2804.4,2804.3,8.1033203]
[1764628800441,0.81100001,2804.4,2804.3,3.56695228]
[1764628800739,0.81100001,2804.4,2804.3,4.13395228]
[1764628801538,0.81100001,2804.4,2804.3,0.001]
[1764628802611,0.81100001,2804.4,2804.3,3.56695228]
[1764628803121,0.81100001,2804.4,2804.3,0.001]
[1764628807065,6.71593695,2804.4,2804.3,0.001]
[1764628807531,10.28176208,2804.4,2804.3,0.001]
[1764628807732,6.71593695,2804.4,2804.3,0.001]
[1764628808446,1.42172155,2804.4,2804.3,0.001]
[1764628808763,6.10521541,2804.4,2804.3,0.001]
[1764628809988,6.10521541,2804.4,2803.7,0.001]
[1764628809989,0.3339,2804.0,2803.7,0.001]
[1764628810263,5.4845154,2803.8,2803.7,0.001]
[1764628810462,5.9582154,2803.8,2803.7,0.001]
[1764628810634,6.55403694,2803.8,2803.7,0.001]
[1764628816665,1.27862154,2803.8,2803.7,0.001]
[1764628817183,0.1956,2804.0,2803.7,0.001]
[1764628817756,0.4925,2804.2,2803.7,0.4795]
[1764628818270,0.4925,2804.2,2803.7,0.001]
[1764628818956,1e-08,2804.4,2804.1,0.6585]
[1764628819364,1e-08,2804.4,2804.1,1.137]
[1764628819777,1e-08,2804.4,2804.3,0.4728]
[1764628820885,1e-08,2804.4,2804.3,4.03875228]
[1764628824090,0.31970001,2804.4,2804.3,4.03875228]
[1764628824393,0.31970001,2804.4,2804.3,3.56595228]
[1764628824592,0.31970001,2804.4,2804.1,0.567]
[1764628824593,0.00320001,2804.4,2804.1,0.567]
[1764628825098,0.00320001,2804.4,2804.1,7.6993886]
[1764628826908,0.00320001,2804.4,2804.1,8.1778886]
[1764628827402,0.00320001,2804.4,2804.3,3.56595228]
[1764628834206,0.00320001,2804.4,2804.1,7.13241324]
[1764628834418,0.00320001,2804.4,2804.1,7.58741324]
[1764628834623,1e-08,2804.4,2804.3,0.46]
[1764628837327,1e-08,2804.4,2804.3,4.75154639]
[1764628839825,1e-08,2804.4,2804.3,5.20654639]
[1764628841818,1e-08,2804.4,2804.3,4.75154639]
[1764628844607,1e-08,2804.4,2804.3,5.23854639]
[1764628844807,1e-08,2804.4,2804.3,4.75154639]
[1764628851038,1e-08,2804.4,2804.3,5.23854639]
[1764628851210,1e-08,2804.4,2804.3,4.75154639]
[1764628851713,1e-08,2804.4,2804.3,5.23854639]
[1764628852038,1e-08,2804.4,2804.3,4.75154639]
[1764628852334,1e-08,2804.4,2804.0,4.13430012]
[1764628852335,0.81060001,2804.4,2804.0,0.001]
[1764628852510,0.3224,2804.1,2804.0,0.001]
[1764628853031,0.8105,2804.1,2804.0,0.001]
[1764628861619,0.3224,2804.1,2804.0,0.001]
[1764628861945,0.4939,2804.1,2804.0,0.001]
[1764628862642,1e-08,2804.4,2804.0,0.4568]
[1764628862844,1e-08,2804.4,2804.0,0.9438]
[1764628863341,0.48900001,2804.4,2804.0,0.9438]
[1764628864843,0.48900001,2804.4,2804.1,7.13241324]
[1764628866967,0.48900001,2804.4,2804.1,3.56620662]
[1764628867460,0.48900001,2804.4,2804.1,7.13241324]
[1764628867632,1e-08,2804.4,2804.1,7.13241324]
[1764628867837,1e-08,2804.4,2804.3,0.4558]
[1764628868244,1e-08,2804.4,2804.3,0.9428]
[1764628869166,1e-08,2804.4,2804.3,5.23434639]
[1764628872066,1e-08,2804.4,2804.3,5.63985039]
[1764628873839,1e-08,2804.4,2804.3,5.7827236]
[1764628874074,1e-08,2804.4,2804.3,6.22736416]
[1764628874280,1e-08,2804.4,2804.3,6.63286816]
[1764628874489,1e-08,2804.4,2804.3,7.35846227]
[1764628880557,1e-08,2804.4,2804.3,7.92446227]
[1764628880889,1e-08,2804.7,2804.6,0.897704]
[1764628881098,1e-08,2804.7,2804.6,1.62329811]
[1764628881395,1e-08,2804.7,2804.6,2.11449811]
[1764628881558,1e-08,2804.7,2804.6,2.2573555]
[1764628881764,1e-08,2804.7,2804.6,6.70981239]
[1764628881979,1e-08,2804.7,2804.6,7.13404823]
[1764628882285,0.002,2805.6,2804.6,7.13404823]
[1764628882286,0.002,2805.6,2805.5,0.405504]
[1764628882588,0.002,2805.6,2805.5,7.6517499]
[1764628882892,0.002,2805.6,2805.5,9.43161014]
[1764628883884,0.002,2805.6,2805.5,12.99603715]
[1764628889818,0.1956,2807.0,2805.5,12.99603715]
[1764628889819,0.1956,2807.0,2805.9,0.405504]
[1764628889990,0.002,2806.2,2806.0,1.29159411]
[1764628890190,0.002,2806.2,2806.1,4.28925898]
[1764628890392,0.002,2806.2,2806.1,6.30526298]
[1764628896348,0.002,2806.2,2806.1,11.59078691]
[1764628902144,0.4989,2807.9,2806.1,16.87631084]
[1764628902365,0.4989,2807.7,2807.3,0.72559411]
[1764628902562,0.4989,2807.7,2807.4,0.566]
[1764628902762,0.3265,2807.5,2807.4,1.0649]
[1764628903156,0.1953,2808.0,2807.4,1.5513]
[1764628903332,0.1953,2808.0,2807.9,0.72559411]
[1764628903530,0.1953,2808.0,2807.9,1.29159411]
[1764628903857,1.0189,2808.0,2807.9,1.29159411]
[1764628904030,1.0189,2808.0,2807.9,1.79049411]
[1764628904234,0.5218,2808.0,2807.9,5.3518745]
[1764628904430,1.0189,2808.0,2807.9,5.3518745]
[1764628906138,0.1969,2808.7,2808.0,1.13109811]
[1764628906367,0.1969,2808.7,2808.4,0.4864]
[1764628906663,0.1969,2808.7,2808.5,0.566]
[1764628906831,0.6958,2808.7,2808.5,0.566]
[1764628907034,0.1969,2809.7,2808.7,0.72559411]
[1764628907244,0.4989,2809.5,2808.9,0.72559411]
[1764628907446,0.4989,2809.5,2809.0,0.566]
[1764628907668,0.4989,2809.5,2809.1,0.72559411]
[1764628907964,0.4989,2809.5,2809.0,1.29159411]
[1764628909366,0.4989,2809.5,2809.2,0.72559411]
[1764628909741,0.2977,2809.3,2809.2,0.72559411]
[1764628910943,0.2977,2809.3,2809.2,1.29059411]
[1764628911362,0.2977,2809.3,2809.2,4.85032641]
[1764628911685,0.1969,2809.7,2809.2,12.45619101]
[1764628911978,0.2977,2809.3,2809.2,4.85032641]
[1764628912176,0.2977,2809.3,2809.2,4.28532641]
[1764628912344,0.7945,2809.3,2809.2,4.85032641]
[1764628913945,0.7945,2809.3,2809.2,4.28532641]
[1764628914146,0.7945,2809.3,2809.2,4.85032641]
[1764628914765,0.7945,2809.3,2809.2,4.28532641]
[1764628916367,0.7966,2809.3,2809.2,4.28532641]
[1764628921089,0.7966,2809.3,2809.1,0.565]
[1764628921391,6.39563632,2809.2,2808.6,0.565]
[1764628921587,0.1969,2808.7,2808.5,1.29059411]
[1764628921752,0.1969,2808.7,2808.5,0.565]
[1764628921952,0.7966,2808.6,2808.5,4.85121365]
[1764628922386,0.7966,2808.6,2808.5,4.12561954]
[1764628922748,0.7966,2808.6,2808.5,3.56061954]
[1764628922986,6.08212393,2808.6,2808.2,0.565]
[1764628923148,0.4982,2808.3,2808.1,0.565]
[1764628923349,0.4962,2808.2,2808.1,0.565]
[1764628923878,0.7965,2808.2,2808.1,0.565]
[1764628924058,0.7965,2808.2,2808.1,4.85172085]
[1764628932990,0.1969,2808.7,2808.2,0.72559411]
[1764628933168,0.6961,2808.7,2808.2,0.72559411]
[1764628933495,0.2973,2808.3,2808.2,0.72559411]
[1764628933897,0.7945,2808.3,2808.2,0.72559411]
[1764628934396,0.2973,2808.3,2808.2,0.72559411]
[1764628935468,0.2973,2808.3,2808.2,4.28659403]
[1764628936666,0.7945,2808.3,2808.2,4.28659403]
[1764628940367,0.1969,2808.7,2808.2,4.76429403]
[1764628940586,0.1969,2808.7,2808.2,8.32529395]
[1764628940872,0.4992,2808.6,2808.2,8.32529395]
[1764628941092,0.2973,2808.3,2808.2,4.28659403]
[1764628942272,0.1827,2808.9,2808.2,8.06139984]
[1764628942600,0.4992,2808.7,2808.2,7.59969984]
[1764628943709,0.8087,2808.3,2808.2,3.56099992]
[1764628943900,0.8107,2808.3,2808.2,3.56099992]
[1764628955324,0.8107,2808.3,2808.2,3.54819992]
[1764628960426,0.3134,2808.3,2808.2,3.54819992]
[1764628961006,0.7658,2808.3,2808.2,3.54819992]
[1764628961232,0.3134,2808.3,2808.2,3.54819992]
[1764628962325,0.8033,2808.3,2808.2,3.54819992]
[1764628964733,0.3134,2808.3,2808.2,3.54819992]
[1764628965624,0.8033,2808.3,2808.2,3.54819992]
[1764628972732,0.3134,2808.3,2808.2,3.54819992]
[1764628972919,0.8033,2808.3,2808.2,3.54819992]
[1764628974441,0.8033,2808.3,2808.1,7.12325348]
[1764628974654,0.5022,2808.2,2808.1,4.28772085]
[1764628975830,0.0123,2808.2,2808.1,4.28772085]
[1764628976641,0.002,2808.3,2808.1,8.32344759]
[1764628976821,0.002,2808.3,2808.2,0.4746]
[1764628978937,0.002,2808.3,2808.2,4.03559992]
[1764628981549,0.8108,2808.3,2808.1,3.56206042]
[1764628981842,0.0049,2808.2,2808.1,0.001]
[1764628982047,0.4948,2808.2,2808.1,0.001]
[1764628982742,0.8088,2808.2,2808.1,0.001]
[1764628987130,1.4345756,2808.2,2808.1,0.001]
[1764628989450,1.4359756,2808.2,2808.1,0.001]
[1764628989744,0.8102,2808.2,2808.1,0.001]
[1764628993027,1.17418975,2808.2,2808.1,0.001]
[1764628993446,0.8102,2808.2,2808.1,0.001]
[1764628994662,0.9099041,2808.2,2808.1,0.001]
[1764628995929,0.8102,2808.2,2808.1,0.001]
[1764628999237,0.8122,2808.2,2808.1,0.001]
[1764628999871,1.17618975,2808.2,2808.1,0.001]
[1764629000734,0.8122,2808.2,2808.1,0.001]
[1764629001250,1.3220553,2808.2,2808.1,0.001]
[1764629004245,0.8122,2808.2,2808.1,0.001]
[1764629004657,0.8122,2808.2,2807.5,7.5850756]
[1764629004658,0.4888,2807.6,2806.7,0.4613]
[1764629004861,0.4888,2807.6,2807.0,4.28811637]
[1764629004862,0.0032,2807.5,2807.0,4.28811637]
[1764629005055,0.6854,2807.5,2807.0,3.56252226]
[1764629005473,0.4984,2807.4,2807.0,3.56252226]
[1764629005658,0.4984,2807.4,2807.0,7.12504452]
[1764629006457,0.4984,2807.4,2807.0,7.58634452]
[1764629006870,0.4984,2807.4,2807.0,7.12504452]
[1764629007482,0.4984,2807.4,2807.0,3.56252226]
[1764629007883,1.29059411,2807.8,2807.3,0.4756]
[1764629008087,0.4984,2807.6,2807.1,0.6513]
[1764629008272,0.4984,2807.6,2807.0,7.12504452]
[1764629008467,0.86238975,2807.6,2807.0,7.12504452]
[1764629008967,0.86238975,2807.5,2807.0,7.12504452]
[1764629009168,0.4984,2807.5,2806.9,7.12529836]
[1764629009593,0.4984,2807.4,2806.9,7.12529836]
[1764629009900,0.4797,2808.6,2807.7,0.4626]
[1764629010187,0.4797,2808.1,2807.3,0.1903]
[1764629010681,0.4797,2808.1,2807.4,0.49]
[1764629010886,0.40427055,2808.0,2807.4,0.49]
[1764629011277,0.88397055,2808.0,2807.5,3.5618878]
[1764629011666,0.4797,2807.9,2807.5,4.0518878]
[1764629012682,0.4797,2807.9,2807.5,7.6137756]
[1764629013888,0.4797,2807.9,2807.5,4.0518878]
[1764629014095,0.002,2808.2,2807.8,0.4626]
[1764629014399,0.002,2808.2,2808.1,0.6529]
[1764629014602,0.002,2808.2,2808.1,1.1429]
[1764629015892,0.002,2808.2,2808.1,4.70402674]
[1764629017186,0.002,2808.2,2808.1,4.21402674]
[1764629017387,0.002,2808.2,2808.1,4.70402674]
[1764629017883,0.002,2808.2,2808.1,5.77438686]
[1764629018057,0.002,2808.2,2808.1,4.70402674]
[1764629018492,0.002,2808.2,2808.1,5.77438686]
[1764629019206,0.002,2808.2,2808.1,4.70402674]
[1764629019496,0.565,2809.2,2808.1,4.70402674]
[1764629019497,0.002,2808.8,2808.4,0.4626]
[1764629019720,0.002,2808.8,2808.7,6.00808171]
[1764629020010,0.6766,2810.2,2808.8,1.13109811]
[1764629020170,5.2824876,2810.3,2808.9,0.565]
[1764629020370,5.2824876,2810.3,2808.9,1.055]
[1764629020571,5.2824876,2810.3,2809.0,1.06982192]
[1764629020865,5.2824876,2810.3,2809.0,1.55982192]
[1764629021206,0.57621876,2810.2,2809.1,0.49]
[1764629021510,0.57621876,2810.2,2809.2,10.6791969]
[1764629021684,0.57621876,2810.2,2809.3,1.29059411]
[1764629021865,0.57621876,2810.2,2809.3,1.77719411]
[1764629022070,0.57621876,2810.2,2809.4,0.4866]
[1764629022303,0.58587064,2810.1,2809.4,1.55642192]
[1764629022665,0.58587064,2810.1,2809.4,1.06982192]
[1764629022870,0.58587064,2810.1,2809.5,0.4866]
[1764629023788,0.58587064,2810.1,2809.7,0.72559411]
[1764629024293,0.58587064,2810.1,2809.8,0.4866]
[1764629024491,0.58587064,2810.1,2809.8,1.55642192]
[1764629024904,0.58587064,2810.1,2809.8,0.4866]
[1764629025093,0.58587064,2810.1,2809.9,1.06982192]
[1764629025808,0.58587064,2810.1,2810.0,0.4955]
[1764629026213,5.7500876,2810.3,2810.0,0.4955]
[1764629027213,5.2824876,2810.3,2810.0,0.4955]
[1764629027620,5.2824876,2810.3,2810.2,0.4955]
[1764629027791,5.9307876,2810.7,2810.2,4.05395125]
[1764629027989,0.4676,2810.6,2810.2,5.12352525]
[1764629028189,0.4676,2810.6,2810.2,4.05395125]
[1764629028590,6.06546952,2810.7,2810.3,1.069574]
[1764629028787,0.23072252,2811.6,2810.6,0.4955]
[1764629028989,5.2824876,2811.0,2810.6,0.4955]
[1764629029620,5.2824876,2811.0,2810.7,1.06952062]
[1764629029915,5.7500876,2811.0,2810.7,1.79511473]
[1764629030120,0.3781,2810.8,2810.7,1.06952062]
[1764629030290,6.29212636,2810.8,2809.7,0.7482]
[1764629030486,5.2824876,2810.3,2810.0,1.06973418]
[1764629030688,5.2824876,2810.1,2810.0,1.06973418]
[1764629030915,6.34923636,2810.1,2809.2,4.12470744]
[1764629031111,5.2824876,2809.8,2809.2,5.19444162]
[1764629031319,5.6462876,2810.0,2809.2,7.68443974]
[1764629031535,0.6557,2809.9,2809.3,1.79549234]
[1764629031714,1.32700364,2809.9,2809.3,1.79549234]
[1764629032027,1.32700364,2809.9,2809.2,8.17103974]
[1764629032203,1.32700364,2809.9,2809.4,1.06989823]
[1764629032617,0.4676,2809.8,2809.4,1.06989823]
[1764629033621,0.4676,2809.7,2809.5,3.55935219]
[1764629033827,0.4676,2809.7,2809.5,0.72559411]
[1764629033997,0.3708,2809.6,2809.5,0.72559411]
[1764629034692,0.3708,2809.6,2809.5,1.38654323]
[1764629035018,0.8374,2809.6,2809.5,0.66094912]
[1764629035207,0.3708,2809.6,2809.5,0.72559411]
[1764629036486,0.66094912,2809.8,2809.5,4.05485219]
[1764629036689,0.3708,2809.6,2809.5,4.2849463]
[1764629037717,0.66094912,2809.8,2809.5,4.7804463]
[1764629037903,0.66094912,2809.8,2809.7,0.4955]
[1764629038302,1.03174912,2809.8,2809.5,4.2849463]
[1764629039294,0.66094912,2809.8,2809.5,4.2849463]